Workbook

Sheet Header
A1: Name | B1: SUBASE New London (Baseline)
A2: Location | B2: Groton, CT
A3: Population | B3: 19500 | C3: (7500 active duty + 12000 family members))
A4: Total Area (acres) | B4: 1217 | C4: (687 for base, 530 for PPV area)
A5: Buildings (incl. F&ES) | B5: 131 | C5: (243 for base per PCA, 160 major facilities per NLON website, found 130 on base map (+1 large PPV group (1495 units)))
A6: Base F&ES Stations | B6: 2
A7: Mutual Aid Stations | B7: 3
A8: Vehicles | B8: 21
A9: Maintenance Period | B9: 0.05
A10: Maintenance Time | B10: 30
A11: Replications | B11: 30
A12: Random Seed | B12: 17

Sheet Types
A1: Building Types | B1: Vehicle Types | C1: Station Types
A2: Residential | B2: Pumper | C2: Mil
A3: Commercial | B3: Tanker | C3: Civ
A4: Retail | B4: EMS
A5: Warehouse | B5: HazMat
A6: Manufacturing | B6: Command
A7: Laboratory | B7: Auxiliary
A8: Dock
A9: Airfield

Sheet Buildings
A1: Index | B1: BuildingID | C1: BuildingName | D1: Type | E1: Floors | F1: Floor Area (sq ft) | G1: Units
A2: 1 | B2: 1 | C2: Port Operations | D2: Dock | E2: 1 | F2: 5000 | G2: 1
A3: 2 | B3: 17 | C3: Naval Submarine Support Center (NSSC) | D3: Commercial | E3: 1 | F3: 5000 | G3: 1
A4: 3 | B4: 20 | C4: Naval Submarine Support Facility (NSSF) | D4: Manufacturing | E4: 1 | F4: 10000 | G4: 1
A5: 4 | B5: 33 | C5: FISC Maintenance Warehouse | D5: Warehouse | E5: 2 | F5: 5000 | G5: 1
A6: 5 | B6: 38 | C6: Naval Submarine Support Facility (NSSF) | D6: Manufacturing | E6: 1 | F6: 10000 | G6: 1
A7: 6 | B7: 40 | C7: Naval Submarine Support Facility (NSSF) | D7: Manufacturing | E7: 1 | F7: 10000 | G7: 1
A8: 7 | B8: 76 | C8: Naval Submarine Support Center (NSSC) | D8: Commercial | E8: 3 | F8: 5000 | G8: 1
A9: 8 | B9: 77 | C9: Phone Company | D9: Commercial | E9: 1 | F9: 2000 | G9: 1
A10: 9 | B10: 83 | C10: Fleet and Family Support Center | D10: Commercial | E10: 3 | F10: 30000 | G10: 1
A11: 10 | B11: 84 | C11: Legal Center/Supply | D11: Commercial | E11: 1 | F11: 5000 | G11: 1
A12: 11 | B12: 85 | C12: PSV/Electric Boat | D12: Commercial | E12: 2 | F12: 5000 | G12: 1
A13: 12 | B13: 86 | C13: SUBASE Headquarters | D13: Commercial | E13: 4 | F13: 5000 | G13: 1
A14: 13 | B14: 87 | C14: Naval Submarine Support Center (NSSC) | D14: Commercial | E14: 3 | F14: 5000 | G14: 1
A15: 14 | B15: 89 | C15: Naval Submarine Support Facility (NSSF) | D15: Manufacturing | E15: 1 | F15: 10000 | G15: 1
A16: 15 | B16: 103 | C16: Naval Submarine Support Facility (NSSF) | D16: Manufacturing | E16: 1 | F16: 10000 | G16: 1
A17: 16 | B17: 106 | C17: NAVSEC | D17: Commercial | E17: 3 | F17: 5000 | G17: 1
A18: 17 | B18: 107 | C18: Fire Station 1 | D18: Commercial | E18: 2 | F18: 1550 | G18: 1
A19: 18 | B19: 108 | C19: Navy Exchange/Thrift | D19: Retail | E19: 1 | F19: 20000 | G19: 1
A20: 19 | B20: 120 | C20: Indoor Swimming Pool | D20: Residential | E20: 1 | F20: 18000 | G20: 1
A21: 20 | B21: 135 | C21: Public Works Dept | D21: Commercial | E21: 2 | F21: 5000 | G21: 1
A22: 21 | B22: 137 | C22: Unknown | D22: Commercial | E22: 1 | F22: 2000 | G22: 1
A23: 22 | B23: 141 | C23: Naval Submarine Research Medical Laboratory (NSRML) | D23: Laboratory | E23: 2 | F23: 25000 | G23: 1
A24: 23 | B24: 148 | C24: Naval Submarine Research Medical Laboratory (NSRML) | D24: Laboratory | E24: 2 | F24: 25000 | G24: 1
A25: 24 | B25: 152 | C25: Submarine School | D25: Commercial | E25: 3 | F25: 30000 | G25: 1
A26: 25 | B26: 153 | C26: Naval Submarine Support Facility (NSSF) | D26: Manufacturing | E26: 1 | F26: 10000 | G26: 1
A27: 26 | B27: 156 | C27: Naval Submarine Research Medical Laboratory (NSRML) | D27: Laboratory | E27: 2 | F27: 25000 | G27: 1
A28: 27 | B28: 157 | C28: Naval Submarine Support Facility (NSSF)/Ant. Shop | D28: Manufacturing | E28: 1 | F28: 10000 | G28: 1
A29: 28 | B29: 159 | C29: Navy Undersea Medical Institute | D29: Laboratory | E29: 2 | F29: 20000 | G29: 1
A30: 29 | B30: 160 | C30: Brig | D30: Residential | E30: 1 | F30: 7500 | G30: 1
A31: 30 | B31: 164 | C31: Dealey Center | D31: Commercial | E31: 2 | F31: 40000 | G31: 1
A32: 31 | B32: 166 | C32: Naval Criminal Investigative Service (NCIS) | D32: Commercial | E32: 2 | F32: 5000 | G32: 1
A33: 32 | B33: 169 | C33: Morton Hall Gymnasium | D33: Commercial | E33: 1 | F33: 35000 | G33: 1
A34: 33 | B34: 173 | C34: Morale Welfare & Recreation (MWR)/Spikes | D34: Retail | E34: 2 | F34: 12500 | G34: 1
A35: 34 | B35: 174 | C35: Naval Submarine Support Facility (NSSF) | D35: Manufacturing | E35: 1 | F35: 10000 | G35: 1
A36: 35 | B36: 175 | C36: Naval Submarine Support Facility (NSSF) | D36: Manufacturing | E36: 1 | F36: 10000 | G36: 1
A37: 36 | B37: 176 | C37: Naval Submarine Support Facility (NSSF) | D37: Manufacturing | E37: 1 | F37: 10000 | G37: 1
A38: 37 | B38: 178 | C38: Morale Welfare & Recreation (MWR) | D38: Commercial | E38: 1 | F38: 5000 | G38: 1
A39: 38 | B39: 181 | C39: Self Help | D39: Commercial | E39: 1 | F39: 5000 | G39: 1
A40: 39 | B40: 186 | C40: Child Development Center | D40: Commercial | E40: 2 | F40: 12000 | G40: 1
A41: 40 | B41: 325 | C41: Naval Submarine Support Facility (NSSF)/WEPS | D41: Manufacturing | E41: 2 | F41: 25000 | G41: 1
A42: 41 | B42: 326 | C42: WT | D42: Manufacturing | E42: 1 | F42: 10000 | G42: 1
A43: 42 | B43: 355 | C43: Defense Reutilization and Marketing Office (DRMO) | D43: Commercial | E43: 2 | F43: 5000 | G43: 1
A44: 43 | B44: 383 | C44: Child Development Center | D44: Commercial | E44: 2 | F44: 8000 | G44: 1
A45: 44 | B45: 386 | C45: Child Development Center | D45: Commercial | E45: 2 | F45: 8000 | G45: 1
A46: 45 | B46: 397 | C46: Defense Reutilization and Marketing Office (DRMO) | D46: Commercial | E46: 2 | F46: 5000 | G46: 1
A47: 46 | B47: 410 | C47: Dolphin Exp. | D47: Commercial | E47: 1 | F47: 5000 | G47: 1
A48: 47 | B48: 427 | C48: Submarine School | D48: Commercial | E48: 3 | F48: 30000 | G48: 1
A49: 48 | B49: 428 | C49: Navy Exchange | D49: Retail | E49: 2 | F49: 60000 | G49: 1
A50: 49 | B50: 429 | C50: Barracks – Groton Hall | D50: Residential | E50: 3 | F50: 10750 | G50: 1
A51: 50 | B51: 430 | C51: Barracks – Scorpion Hall | D51: Residential | E51: 3 | F51: 10750 | G51: 1
A52: 51 | B52: 434 | C52: Barracks – Gato Hall | D52: Residential | E52: 3 | F52: 10750 | G52: 1
A53: 52 | B53: 435 | C53: Barracks – Grayling Hall | D53: Residential | E53: 3 | F53: 10750 | G53: 1
A54: 53 | B54: 436 | C54: Electric Boat | D54: Commercial | E54: 2 | F54: 5000 | G54: 1
A55: 54 | B55: 439 | C55: Barracks – O'Kane Hall | D55: Residential | E55: 3 | F55: 10750 | G55: 1
A56: 55 | B56: 444 | C56: WT | D56: Commercial | E56: 1 | F56: 10000 | G56: 1
A57: 56 | B57: 445 | C57: Morale Welfare & Recreation (MWR) | D57: Commercial | E57: 2 | F57: 5000 | G57: 1
A58: 57 | B58: 446 | C58: Cross Hall Galley | D58: Retail | E58: 1 | F58: 30000 | G58: 1
A59: 58 | B59: 448 | C59: Submarine School | D59: Commercial | E59: 3 | F59: 15000 | G59: 1
A60: 59 | B60: 449 | C60: Navy Branch Health Clinic | D60: Laboratory | E60: 3 | F60: 100000 | G60: 1
A61: 60 | B61: 451 | C61: Public Works Dept Shop | D61: Manufacturing | E61: 1 | F61: 10000 | G61: 1
A62: 61 | B62: 454 | C62: Morale Welfare & Recreation (MWR) | D62: Commercial | E62: 2 | F62: 5000 | G62: 1
A63: 62 | B63: 455 | C63: Barracks – Nautilus Hall | D63: Residential | E63: 3 | F63: 10750 | G63: 1
A64: 63 | B64: 456 | C64: Naval Submarine Support Facility (NSSF) | D64: Manufacturing | E64: 2 | F64: 10000 | G64: 1
A65: 64 | B65: 460 | C65: Auto Shop/F&ES Storage | D65: Manufacturing | E65: 1 | F65: 1000 | G65: 1
A66: 65 | B66: 461 | C66: Navy Exchange/Package | D66: Retail | E66: 1 | F66: 3000 | G66: 1
A67: 66 | B67: 462 | C67: Security | D67: Commercial | E67: 1 | F67: 45000 | G67: 1
A68: 67 | B68: 465 | C68: Submarine School | D68: Commercial | E68: 3 | F68: 20000 | G68: 1
A69: 68 | B69: 474 | C69: Submarine School | D69: Commercial | E69: 3 | F69: 20000 | G69: 1
A70: 69 | B70: 476 | C70: Public Works Dept | D70: Manufacturing | E70: 1 | F70: 10000 | G70: 1
A71: 70 | B71: 478 | C71: Naval Submarine Support Facility (NSSF)/Metal | D71: Manufacturing | E71: 1 | F71: 35000 | G71: 1
A72: 71 | B72: 480 | C72: WT | D72: Commercial | E72: 2 | F72: 5000 | G72: 1
A73: 72 | B73: 481 | C73: Public Works Dept | D73: Manufacturing | E73: 1 | F73: 10000 | G73: 1
A74: 73 | B74: 483 | C74: Public Works Dept | D74: Manufacturing | E74: 1 | F74: 10000 | G74: 1
A75: 74 | B75: 484 | C75: Commissary/Navy Exchange | D75: Retail | E75: 1 | F75: 50000 | G75: 1
A76: 75 | B76: 485 | C76: SUBASE Lanes Bowling Center | D76: Retail | E76: 1 | F76: 80000 | G76: 1
A77: 76 | B77: 488 | C77: Barracks – Triton Hall | D77: Residential | E77: 3 | F77: 10750 | G77: 1
A78: 77 | B78: 492 | C78: Barracks – Thresher Hall | D78: Residential | E78: 3 | F78: 10750 | G78: 1
A79: 78 | B79: 493 | C79: Naval Submarine Support Facility (NSSF)/SUP | D79: Warehouse | E79: 2 | F79: 75000 | G79: 1
A80: 79 | B80: 499 | C80: Submarine School | D80: Commercial | E80: 3 | F80: 25000 | G80: 1
A81: 80 | B81: 500 | C81: Pass and ID Office | D81: Commercial | E81: 1 | F81: 2500 | G81: 1
A82: 81 | B82: 518 | C82: Submarine School | D82: Commercial | E82: 3 | F82: 20000 | G82: 1
A83: 82 | B83: 519 | C83: Submarine School | D83: Commercial | E83: 3 | F83: 30000 | G83: 1
A84: 83 | B84: 520 | C84: Submarine School | D84: Commercial | E84: 3 | F84: 20000 | G84: 1
A85: 84 | B85: 521 | C85: Veterinary Clinic | D85: Laboratory | E85: 1 | F85: 12000 | G85: 1
A86: 85 | B86: 522 | C86: Racquetball Center | D86: Commercial | E86: 1 | F86: 30000 | G86: 1
A87: 86 | B87: 523 | C87: Public Works Dept Shop | D87: Manufacturing | E87: 1 | F87: 10000 | G87: 1
A88: 87 | B88: 524 | C88: Naval Submarine Support Facility (NSSF)/WEPS | D88: Manufacturing | E88: 2 | F88: 10000 | G88: 1
A89: 88 | B89: 530 | C89: Morale Welfare & Recreation (MWR)/Pest Control | D89: Laboratory | E89: 1 | F89: 5000 | G89: 1
A90: 89 | B90: 533 | C90: Submarine School | D90: Commercial | E90: 3 | F90: 17000 | G90: 1
A91: 90 | B91: 534 | C91: Barracks – Fulton Hall | D91: Residential | E91: 3 | F91: 10750 | G91: 1
A92: 91 | B92: 535 | C92: Thames View Marina | D92: Dock | E92: 1 | F92: 20000 | G92: 1
A93: 92 | B93: 548 | C93: Vacant | D93: Warehouse | E93: 2 | F93: 12000 | G93: 1
A94: 93 | B94: 549 | C94: Fuels | D94: Laboratory | E94: 1 | F94: 25000 | G94: 1
A95: 94 | B95: 553 | C95: Environmental Oily Waste | D95: Laboratory | E95: 1 | F95: 7000 | G95: 1
A96: 95 | B96: 555 | C96: Morale Welfare & Recreation (MWR)/Pest Control | D96: Laboratory | E96: 1 | F96: 5000 | G96: 1
A97: 96 | B97: 559 | C97: Security Dog Kennel | D97: Residential | E97: 1 | F97: 8000 | G97: 1
A98: 97 | B98: 560 | C98: Barracks – Bishop Hall | D98: Residential | E98: 3 | F98: 10750 | G98: 1
A99: 98 | B99: 561 | C99: Supply/Chrimp | D99: Warehouse | E99: 2 | F99: 80000 | G99: 1
A100: 99 | B100: 562 | C100: ENV | D100: Manufacturing | E100: 1 | F100: 9000 | G100: 1
A101: 100 | B101: 564 | C101: Naval Submarine Support Facility (NSSF)/Nuclear Regional Maintenance Department | D101: Laboratory | E101: 3 | F101: 12000 | G101: 1
A102: 101 | B102: 569 | C102: Liberty Recreation Center | D102: Commercial | E102: 1 | F102: 5000 | G102: 1
A103: 102 | B103: 571 | C103: Nautilus | D103: Retail | E103: 1 | F103: 7500 | G103: 1
A104: 103 | B104: 574 | C104: Small Boat Maintenance | D104: Manufacturing | E104: 1 | F104: 10000 | G104: 1
A105: 104 | B105: 575 | C105: Navy Branch Health Clinic | D105: Laboratory | E105: 3 | F105: 50000 | G105: 1
A106: 105 | B106: 582 | C106: Gate 7 Guard Shack | D106: Commercial | E106: 1 | F106: 1000 | G106: 1
A107: 106 | B107: 583 | C107: Truck Inspection | D107: Commercial | E107: 1 | F107: 2000 | G107: 1
A108: 107 | B108: 588 | C108: Unknown | D108: Commercial | E108: 1 | F108: 500 | G108: 1
A109: 108 | B109: 589 | C109: Unknown | D109: Commercial | E109: 1 | F109: 500 | G109: 1
A110: 109 | B110: 590 | C110: Unknown | D110: Commercial | E110: 1 | F110: 1000 | G110: 1
A111: 110 | B111: 592 | C111: Sub Escape Trainer | D111: Commercial | E111: 1 | F111: 20000 | G111: 1
A112: 111 | B112: 602 | C112: Crane Maintenance Facility | D112: Manufacturing | E112: 2 | F112: 35000 | G112: 1
A113: 112 | B113: 607 | C113: Submarine Learning Center | D113: Retail | E113: 1 | F113: 1500 | G113: 1
A114: 113 | B114: 109A | C114: MAGFAC | D114: Manufacturing | E114: 2 | F114: 20000 | G114: 1
A115: 114 | B115: 587A | C115: Gate 1 Guard Shack | D115: Commercial | E115: 1 | F115: 500 | G115: 1
A116: 115 | B116: CH 1001 | C116: Chapel | D116: Commercial | E116: 1 | F116: 3000 | G116: 1
A117: 116 | B117: CH 1005 | C117: Dolphin Mart | D117: Retail | E117: 1 | F117: 1000 | G117: 1
A118: 117 | B118: CH 905 | C118: Morale Welfare & Recreation (MWR)/Youth Center | D118: Commercial | E118: 2 | F118: 10000 | G118: 1
A119: 118 | B119: DF 50 | C119: Navy Lodge | D119: Residential | E119: 2 | F119: 15000 | G119: 1
A120: 119 | B120: FIFE EST | C120: Morale Welfare & Recreation (MWR) | D120: Commercial | E120: 1 | F120: 10000 | G120: 1
A121: 120 | B121: P1 | C121: Pier 1 | D121: Dock | E121: 1 | F121: 13500 | G121: 1
A122: 121 | B122: P10 | C122: Pier 10 | D122: Dock | E122: 1 | F122: 13500 | G122: 1
A123: 122 | B123: P2 | C123: Pier 1 | D123: Dock | E123: 1 | F123: 13500 | G123: 1
A124: 123 | B124: P3 | C124: Pier 3 | D124: Dock | E124: 1 | F124: 13500 | G124: 1
A125: 124 | B125: P4 | C125: Pier 4 | D125: Dock | E125: 1 | F125: 13500 | G125: 1
A126: 125 | B126: P5 | C126: Pier 5 | D126: Dock | E126: 1 | F126: 13500 | G126: 1
A127: 126 | B127: P6 | C127: Pier 6 | D127: Dock | E127: 1 | F127: 13500 | G127: 1
A128: 127 | B128: P7 | C128: Pier 7 | D128: Dock | E128: 1 | F128: 13500 | G128: 1
A129: 128 | B129: P8 | C129: Pier 8 | D129: Dock | E129: 1 | F129: 13500 | G129: 1
A130: 129 | B130: P9 | C130: Pier 9 | D130: Dock | E130: 1 | F130: 13500 | G130: 1
A131: 130 | B131: PP-141 | C131: Fire Station 2 | D131: Warehouse | E131: 1 | F131: 1000 | G131: 1
A132: 131 | B132: PPV | C132: PPV Housing | D132: Residential | E132: 2 | F132: 1000 | G132: 1495

Sheet Stations
A1: Index | B1: Station | C1: Vehicles | D1: Crew | E1: Type
A2: 1 | B2: SUBASE New London Station 1 (Building 107) | C2: 5 | D2: 54 | E2: Mil
A3: 2 | B3: PPV Housing Station 2 (Building PP-141) | C3: 6 | D3: 4 | E3: Mil
A4: 3 | B4: City of Groton VFD Station 1 | C4: 3 | D4: 10 | E4: Civ
A5: 4 | B5: Poquonnock Bridge VFD Long Hill Station | C5: 2 | D5: 3 | E5: Civ
A6: 5 | B6: Groton Ambulance Station 1 | C6: 5 | D6: 15 | E6: Civ

Sheet Vehicles
A1: Index | B1: Vehicle | C1: Type | D1: Location | E1: Crew on Duty
A2: 1 | B2: Engine Co-11 | C2: Pumper | D2: 1 | E2: 4
A3: 2 | B3: Engine Co-12 | C3: Pumper | D3: 1 | E3: 4
A4: 3 | B4: Ladder Co-15 | C4: Pumper | D4: 1 | E4: 4
A5: 4 | B5: Ambulance XX | C5: EMS | D5: 1 | E5: 2
A6: 5 | B6: Excursion | C6: Command | D6: 1 | E6: 1
A7: 6 | B7: Engine Co-25 | C7: Pumper | D7: 2 | E7: 4
A8: 7 | B8: HazMat XX | C8: Hazmat | D8: 2 | E8: 2
A9: 8 | B9: Reserve Ambulance | C9: EMS | D9: 2 | E9: 2
A10: 9 | B10: Explorer | C10: Command | D10: 2 | E10: 1
A11: 10 | B11: Tahoe | C11: Command | D11: 2 | E11: 1
A12: 11 | B12: Dodge Crew Cab | C12: Auxiliary | D12: 2 | E12: 1
A13: 12 | B13: Engine G-11 | C13: Pumper | D13: 3 | E13: 3
A14: 13 | B14: Ladder G-15 | C14: Pumper | D14: 3 | E14: 3
A15: 14 | B15: Rescue G-27 | C15: EMS | D15: 3 | E15: 3
A16: 15 | B16: Engine G-33 | C16: Pumper | D16: 4 | E16: 3
A17: 16 | B17: Ladder G-35 | C17: Pumper | D17: 4 | E17: 3
A18: 17 | B18: Ambulance 1 | C18: EMS | D18: 5 | E18: 2
A19: 18 | B19: Ambulance 2 | C19: EMS | D19: 5 | E19: 2
A20: 19 | B20: Ambulance 3 | C20: EMS | D20: 5 | E20: 2
A21: 20 | B21: Ambulance 4 | C21: EMS | D21: 5 | E21: 2
A22: 21 | B22: Ambulance 5 | C22: EMS | D22: 5 | E22: 2

Sheet Simulation Scenarios
G2: Fire Origination | H2: Final Spread Limited to: | I2: Probability | J2: Prob Bins | K2: Damage/Scale | L2: alpha | M2: beta | R2: Probability Given Origination
G3: Ground Level | H3: Original Room | I3: =R3*$E$8 -> 0.105 | J3: 0 | K3: 0.2 | L3: 4.184347059 | M3: 9.691044543 | R3: =1-E11 -> 0.15 | T3: =AVERAGE(L3/L$7,L8/L$12)*T$7 -> 4.175702418 | U3: =AVERAGE(M3/M$7,M8/M$12)*U$7 -> 9.47222047
G4: Ground Level | H4: 2 rooms on same floor | I4: =R4*$E$8 -> 0.08925 | J4: =J3+I3 -> 0.105 | K4: 0.4 | L4: 4.065902459 | M4: 11.74259684 | R4: =E11-SUM(R5:R7) -> 0.1275 | T4: 4.062992835 | U4: 11.59230262
G5: Ground Level | H5: 3 rooms on same floor | I5: =R5*$E$8 -> 0.10115 | J5: =J4+I4 -> 0.19425 | K5: 0.6 | L5: 4.029640292 | M5: 13.09936973 | R5: =E11^2-SUM(R6:R7) -> 0.1445 | T5: 4.028052712 | U5: 13.0059678
G6: Ground Level | H6: 1 Room in Other Floor | I6: =R6*$E$8 -> 0.06069 | J6: 0.2954 | K6: 0.8 | L6: 4.011326414 | M6: 14.14134048 | R6: =E11^2*E12-R7 -> 0.0867 | T6: 4.010570752 | U6: 14.09763206
G7: Ground Level | H7: Whole House | I7: =R7*$E$8 -> 0.34391 | J7: 0.35609 | K7: 1 | L7: 4 | M7: 15 | R7: =E11^3*E12 -> 0.4913 | T7: 4 | U7: 15
A8: %Prob Fire Starting at Ground Level (1-P for Uppel Level) | E8: 0.7 | G8: Upper Level | H8: Original Room | I8: =R8*(1-$E$8) -> 0.045 | J8: =J7+I7 -> 0.7 | K8: 0.2 | L8: 3.750351999 | M8: 10.48718258 | R8: =1-E15 -> 0.15 | T8: =AVERAGE(L3/L$7,L8/L$12)*T$12 -> 3.758132176 | U8: 10.7351832
G9: Upper Level | H9: 2 rooms on same floor | I9: =R9*(1-$E$8) -> 0.03825 | J9: 0.745 | K9: 0.4 | L9: 3.65407489 | M9: 12.96760953 | R9: =E15-SUM(R10:R12) -> 0.1275 | T9: 3.656693551 | U9: 13.13794297
A10: Ground Level | G10: Upper Level | H10: 3 rooms on same floor | I10: =R10*(1-$E$8) -> 0.0867 | J10: 0.78325 | K10: 0.6 | L10: 3.623818619 | M10: 14.63424133 | R10: =E15^2-SUM(R11:R12) -> 0.289 | T10: 3.625247441 | U10: 14.74009684
A11: % Prob Spread Room to Room | E11: 0.85 | G11: Upper Level | H11: 1 Room in Other Floor | I11: =R11*(1-$E$8) -> 0.0195075 | J11: 0.86995 | K11: 0.8 | L11: 3.60883358 | M11: 15.92778013 | R11: =E15^2*E16-R12 -> 0.065025 | T11: 3.609513677 | U11: 15.97731633
A12: % Prob Spread from floor to floor (after adjacent rooms ignited) | E12: 0.8 | G12: Upper Level | H12: Whole House | I12: =R12*(1-$E$8) -> 0.1105425 | J12: 0.8894575 | K12: 1 | L12: 3.6 | M12: 17 | R12: =E15^3*E16 -> 0.368475 | T12: 3.6 | U12: 17
A14: Upper Level
A15: % Prob Spread Room to Room | E15: 0.85
A16: % Prob Spread from floor to floor (after adjacent rooms ignited) | E16: 0.6

Sheet ResponseTime
A1: Response Time | B1: Station Index | C1: 1 | D1: 2 | E1: 3 | F1: 4 | G1: 5
B2: Station Name | C2: SUBASE New London Station 1 (Building 107) | D2: PPV Housing Station 2 (Building PP-141) | E2: City of Groton VFD Station 1 | F2: Poquonnock Bridge VFD Long Hill Station | G2: Groton Ambulance Station 1
A3: Building Index | B3: Building Name
A4: 1 | B4: =IF(A4="","",VLOOKUP(A4,[1]Buildings!$A$2:$F$301,3)) -> Port Operations | C4: 5 | D4: 5 | E4: 6 | F4: 5 | G4: 7
A5: 2 | B5: =IF(A5="","",VLOOKUP(A5,[1]Buildings!$A$2:$F$301,3)) -> Naval Submarine Support Center (NSSC) | C5: 5 | D5: 5 | E5: 6 | F5: 5 | G5: 7
A6: 3 | B6: =IF(A6="","",VLOOKUP(A6,[1]Buildings!$A$2:$F$301,3)) -> Naval Submarine Support Facility (NSSF) | C6: 5 | D6: 5 | E6: 6 | F6: 5 | G6: 7
A7: 4 | B7: =IF(A7="","",VLOOKUP(A7,[1]Buildings!$A$2:$F$301,3)) -> FISC Maintenance Warehouse | C7: 5 | D7: 5 | E7: 6 | F7: 5 | G7: 7
A8: 5 | B8: =IF(A8="","",VLOOKUP(A8,[1]Buildings!$A$2:$F$301,3)) -> Naval Submarine Support Facility (NSSF) | C8: 5 | D8: 5 | E8: 6 | F8: 5 | G8: 7
A9: 6 | B9: =IF(A9="","",VLOOKUP(A9,[1]Buildings!$A$2:$F$301,3)) -> Naval Submarine Support Facility (NSSF) | C9: 5 | D9: 5 | E9: 6 | F9: 5 | G9: 7
A10: 7 | B10: =IF(A10="","",VLOOKUP(A10,[1]Buildings!$A$2:$F$301,3)) -> Naval Submarine Support Center (NSSC) | C10: 5 | D10: 5 | E10: 6 | F10: 5 | G10: 7
A11: 8 | B11: =IF(A11="","",VLOOKUP(A11,[1]Buildings!$A$2:$F$301,3)) -> Phone Company | C11: 5 | D11: 5 | E11: 6 | F11: 5 | G11: 7
A12: 9 | B12: =IF(A12="","",VLOOKUP(A12,[1]Buildings!$A$2:$F$301,3)) -> Fleet and Family Support Center | C12: 5 | D12: 5 | E12: 6 | F12: 5 | G12: 7
A13: 10 | B13: =IF(A13="","",VLOOKUP(A13,[1]Buildings!$A$2:$F$301,3)) -> Legal Center/Supply | C13: 5 | D13: 5 | E13: 6 | F13: 5 | G13: 7
A14: 11 | B14: =IF(A14="","",VLOOKUP(A14,[1]Buildings!$A$2:$F$301,3)) -> PSV/Electric Boat | C14: 5 | D14: 5 | E14: 6 | F14: 5 | G14: 7
A15: 12 | B15: =IF(A15="","",VLOOKUP(A15,[1]Buildings!$A$2:$F$301,3)) -> SUBASE Headquarters | C15: 5 | D15: 5 | E15: 6 | F15: 5 | G15: 7
A16: 13 | B16: =IF(A16="","",VLOOKUP(A16,[1]Buildings!$A$2:$F$301,3)) -> Naval Submarine Support Center (NSSC) | C16: 5 | D16: 5 | E16: 6 | F16: 5 | G16: 7
A17: 14 | B17: =IF(A17="","",VLOOKUP(A17,[1]Buildings!$A$2:$F$301,3)) -> Naval Submarine Support Facility (NSSF) | C17: 5 | D17: 5 | E17: 6 | F17: 5 | G17: 7
A18: 15 | B18: =IF(A18="","",VLOOKUP(A18,[1]Buildings!$A$2:$F$301,3)) -> Naval Submarine Support Facility (NSSF) | C18: 5 | D18: 5 | E18: 6 | F18: 5 | G18: 7
A19: 16 | B19: =IF(A19="","",VLOOKUP(A19,[1]Buildings!$A$2:$F$301,3)) -> NAVSEC | C19: 5 | D19: 5 | E19: 6 | F19: 5 | G19: 7
A20: 17 | B20: =IF(A20="","",VLOOKUP(A20,[1]Buildings!$A$2:$F$301,3)) -> Fire Station 1 | C20: 0 | D20: 5 | E20: 6 | F20: 5 | G20: 7
A21: 18 | B21: =IF(A21="","",VLOOKUP(A21,[1]Buildings!$A$2:$F$301,3)) -> Navy Exchange/Thrift | C21: 5 | D21: 5 | E21: 6 | F21: 5 | G21: 7
A22: 19 | B22: =IF(A22="","",VLOOKUP(A22,[1]Buildings!$A$2:$F$301,3)) -> Indoor Swimming Pool | C22: 5 | D22: 5 | E22: 6 | F22: 5 | G22: 7
A23: 20 | B23: =IF(A23="","",VLOOKUP(A23,[1]Buildings!$A$2:$F$301,3)) -> Public Works Dept | C23: 5 | D23: 5 | E23: 6 | F23: 5 | G23: 7
A24: 21 | B24: =IF(A24="","",VLOOKUP(A24,[1]Buildings!$A$2:$F$301,3)) -> Unknown | C24: 5 | D24: 5 | E24: 6 | F24: 5 | G24: 7
A25: 22 | B25: =IF(A25="","",VLOOKUP(A25,[1]Buildings!$A$2:$F$301,3)) -> Naval Submarine Research Medical Laboratory (NSRML) | C25: 5 | D25: 5 | E25: 6 | F25: 5 | G25: 7
A26: 23 | B26: =IF(A26="","",VLOOKUP(A26,[1]Buildings!$A$2:$F$301,3)) -> Naval Submarine Research Medical Laboratory (NSRML) | C26: 5 | D26: 5 | E26: 6 | F26: 5 | G26: 7
A27: 24 | B27: =IF(A27="","",VLOOKUP(A27,[1]Buildings!$A$2:$F$301,3)) -> Submarine School | C27: 5 | D27: 5 | E27: 6 | F27: 5 | G27: 7
A28: 25 | B28: =IF(A28="","",VLOOKUP(A28,[1]Buildings!$A$2:$F$301,3)) -> Naval Submarine Support Facility (NSSF) | C28: 5 | D28: 5 | E28: 6 | F28: 5 | G28: 7
A29: 26 | B29: =IF(A29="","",VLOOKUP(A29,[1]Buildings!$A$2:$F$301,3)) -> Naval Submarine Research Medical Laboratory (NSRML) | C29: 5 | D29: 5 | E29: 6 | F29: 5 | G29: 7
A30: 27 | B30: =IF(A30="","",VLOOKUP(A30,[1]Buildings!$A$2:$F$301,3)) -> Naval Submarine Support Facility (NSSF)/Ant. Shop | C30: 5 | D30: 5 | E30: 6 | F30: 5 | G30: 7
A31: 28 | B31: =IF(A31="","",VLOOKUP(A31,[1]Buildings!$A$2:$F$301,3)) -> Navy Undersea Medical Institute | C31: 5 | D31: 5 | E31: 6 | F31: 5 | G31: 7
A32: 29 | B32: =IF(A32="","",VLOOKUP(A32,[1]Buildings!$A$2:$F$301,3)) -> Brig | C32: 5 | D32: 5 | E32: 6 | F32: 5 | G32: 7
A33: 30 | B33: =IF(A33="","",VLOOKUP(A33,[1]Buildings!$A$2:$F$301,3)) -> Dealey Center | C33: 5 | D33: 5 | E33: 6 | F33: 5 | G33: 7
A34: 31 | B34: =IF(A34="","",VLOOKUP(A34,[1]Buildings!$A$2:$F$301,3)) -> Naval Criminal Investigative Service (NCIS) | C34: 5 | D34: 5 | E34: 6 | F34: 5 | G34: 7
A35: 32 | B35: =IF(A35="","",VLOOKUP(A35,[1]Buildings!$A$2:$F$301,3)) -> Morton Hall Gymnasium | C35: 5 | D35: 5 | E35: 6 | F35: 5 | G35: 7
A36: 33 | B36: =IF(A36="","",VLOOKUP(A36,[1]Buildings!$A$2:$F$301,3)) -> Morale Welfare & Recreation (MWR)/Spikes | C36: 5 | D36: 5 | E36: 6 | F36: 5 | G36: 7
A37: 34 | B37: =IF(A37="","",VLOOKUP(A37,[1]Buildings!$A$2:$F$301,3)) -> Naval Submarine Support Facility (NSSF) | C37: 5 | D37: 5 | E37: 6 | F37: 5 | G37: 7
A38: 35 | B38: =IF(A38="","",VLOOKUP(A38,[1]Buildings!$A$2:$F$301,3)) -> Naval Submarine Support Facility (NSSF) | C38: 5 | D38: 5 | E38: 6 | F38: 5 | G38: 7
A39: 36 | B39: =IF(A39="","",VLOOKUP(A39,[1]Buildings!$A$2:$F$301,3)) -> Naval Submarine Support Facility (NSSF) | C39: 5 | D39: 5 | E39: 6 | F39: 5 | G39: 7
A40: 37 | B40: =IF(A40="","",VLOOKUP(A40,[1]Buildings!$A$2:$F$301,3)) -> Morale Welfare & Recreation (MWR) | C40: 5 | D40: 5 | E40: 6 | F40: 5 | G40: 7
A41: 38 | B41: =IF(A41="","",VLOOKUP(A41,[1]Buildings!$A$2:$F$301,3)) -> Self Help | C41: 5 | D41: 5 | E41: 6 | F41: 5 | G41: 7
A42: 39 | B42: =IF(A42="","",VLOOKUP(A42,[1]Buildings!$A$2:$F$301,3)) -> Child Development Center | C42: 5 | D42: 5 | E42: 6 | F42: 5 | G42: 7
A43: 40 | B43: =IF(A43="","",VLOOKUP(A43,[1]Buildings!$A$2:$F$301,3)) -> Naval Submarine Support Facility (NSSF)/WEPS | C43: 5 | D43: 5 | E43: 6 | F43: 5 | G43: 7
A44: 41 | B44: =IF(A44="","",VLOOKUP(A44,[1]Buildings!$A$2:$F$301,3)) -> WT | C44: 5 | D44: 5 | E44: 6 | F44: 5 | G44: 7
A45: 42 | B45: =IF(A45="","",VLOOKUP(A45,[1]Buildings!$A$2:$F$301,3)) -> Defense Reutilization and Marketing Office (DRMO) | C45: 5 | D45: 5 | E45: 6 | F45: 5 | G45: 7
A46: 43 | B46: =IF(A46="","",VLOOKUP(A46,[1]Buildings!$A$2:$F$301,3)) -> Child Development Center | C46: 5 | D46: 5 | E46: 6 | F46: 5 | G46: 7
A47: 44 | B47: =IF(A47="","",VLOOKUP(A47,[1]Buildings!$A$2:$F$301,3)) -> Child Development Center | C47: 5 | D47: 5 | E47: 6 | F47: 5 | G47: 7
A48: 45 | B48: =IF(A48="","",VLOOKUP(A48,[1]Buildings!$A$2:$F$301,3)) -> Defense Reutilization and Marketing Office (DRMO) | C48: 5 | D48: 5 | E48: 6 | F48: 5 | G48: 7
A49: 46 | B49: =IF(A49="","",VLOOKUP(A49,[1]Buildings!$A$2:$F$301,3)) -> Dolphin Exp. | C49: 5 | D49: 5 | E49: 6 | F49: 5 | G49: 7
A50: 47 | B50: =IF(A50="","",VLOOKUP(A50,[1]Buildings!$A$2:$F$301,3)) -> Submarine School | C50: 5 | D50: 5 | E50: 6 | F50: 5 | G50: 7
A51: 48 | B51: =IF(A51="","",VLOOKUP(A51,[1]Buildings!$A$2:$F$301,3)) -> Navy Exchange | C51: 5 | D51: 5 | E51: 6 | F51: 5 | G51: 7
A52: 49 | B52: =IF(A52="","",VLOOKUP(A52,[1]Buildings!$A$2:$F$301,3)) -> Barracks – Groton Hall | C52: 5 | D52: 5 | E52: 6 | F52: 5 | G52: 7
A53: 50 | B53: =IF(A53="","",VLOOKUP(A53,[1]Buildings!$A$2:$F$301,3)) -> Barracks – Scorpion Hall | C53: 5 | D53: 5 | E53: 6 | F53: 5 | G53: 7
A54: 51 | B54: =IF(A54="","",VLOOKUP(A54,[1]Buildings!$A$2:$F$301,3)) -> Barracks – Gato Hall | C54: 5 | D54: 5 | E54: 6 | F54: 5 | G54: 7
A55: 52 | B55: =IF(A55="","",VLOOKUP(A55,[1]Buildings!$A$2:$F$301,3)) -> Barracks – Grayling Hall | C55: 5 | D55: 5 | E55: 6 | F55: 5 | G55: 7
A56: 53 | B56: =IF(A56="","",VLOOKUP(A56,[1]Buildings!$A$2:$F$301,3)) -> Electric Boat | C56: 5 | D56: 5 | E56: 6 | F56: 5 | G56: 7
A57: 54 | B57: =IF(A57="","",VLOOKUP(A57,[1]Buildings!$A$2:$F$301,3)) -> Barracks – O'Kane Hall | C57: 5 | D57: 5 | E57: 6 | F57: 5 | G57: 7
A58: 55 | B58: =IF(A58="","",VLOOKUP(A58,[1]Buildings!$A$2:$F$301,3)) -> WT | C58: 5 | D58: 5 | E58: 6 | F58: 5 | G58: 7
A59: 56 | B59: =IF(A59="","",VLOOKUP(A59,[1]Buildings!$A$2:$F$301,3)) -> Morale Welfare & Recreation (MWR) | C59: 5 | D59: 5 | E59: 6 | F59: 5 | G59: 7
A60: 57 | B60: =IF(A60="","",VLOOKUP(A60,[1]Buildings!$A$2:$F$301,3)) -> Cross Hall Galley | C60: 5 | D60: 5 | E60: 6 | F60: 5 | G60: 7
A61: 58 | B61: =IF(A61="","",VLOOKUP(A61,[1]Buildings!$A$2:$F$301,3)) -> Submarine School | C61: 5 | D61: 5 | E61: 6 | F61: 5 | G61: 7
A62: 59 | B62: =IF(A62="","",VLOOKUP(A62,[1]Buildings!$A$2:$F$301,3)) -> Navy Branch Health Clinic | C62: 5 | D62: 5 | E62: 6 | F62: 5 | G62: 7
A63: 60 | B63: =IF(A63="","",VLOOKUP(A63,[1]Buildings!$A$2:$F$301,3)) -> Public Works Dept Shop | C63: 5 | D63: 5 | E63: 6 | F63: 5 | G63: 7
A64: 61 | B64: =IF(A64="","",VLOOKUP(A64,[1]Buildings!$A$2:$F$301,3)) -> Morale Welfare & Recreation (MWR) | C64: 5 | D64: 5 | E64: 6 | F64: 5 | G64: 7
A65: 62 | B65: =IF(A65="","",VLOOKUP(A65,[1]Buildings!$A$2:$F$301,3)) -> Barracks – Nautilus Hall | C65: 5 | D65: 5 | E65: 6 | F65: 5 | G65: 7
A66: 63 | B66: =IF(A66="","",VLOOKUP(A66,[1]Buildings!$A$2:$F$301,3)) -> Naval Submarine Support Facility (NSSF) | C66: 5 | D66: 5 | E66: 6 | F66: 5 | G66: 7
A67: 64 | B67: =IF(A67="","",VLOOKUP(A67,[1]Buildings!$A$2:$F$301,3)) -> Auto Shop/F&ES Storage | C67: 5 | D67: 5 | E67: 6 | F67: 5 | G67: 7
A68: 65 | B68: =IF(A68="","",VLOOKUP(A68,[1]Buildings!$A$2:$F$301,3)) -> Navy Exchange/Package | C68: 5 | D68: 5 | E68: 6 | F68: 5 | G68: 7
A69: 66 | B69: =IF(A69="","",VLOOKUP(A69,[1]Buildings!$A$2:$F$301,3)) -> Security | C69: 5 | D69: 5 | E69: 6 | F69: 5 | G69: 7
A70: 67 | B70: =IF(A70="","",VLOOKUP(A70,[1]Buildings!$A$2:$F$301,3)) -> Submarine School | C70: 5 | D70: 5 | E70: 6 | F70: 5 | G70: 7
A71: 68 | B71: =IF(A71="","",VLOOKUP(A71,[1]Buildings!$A$2:$F$301,3)) -> Submarine School | C71: 5 | D71: 5 | E71: 6 | F71: 5 | G71: 7
A72: 69 | B72: =IF(A72="","",VLOOKUP(A72,[1]Buildings!$A$2:$F$301,3)) -> Public Works Dept | C72: 5 | D72: 5 | E72: 6 | F72: 5 | G72: 7
A73: 70 | B73: =IF(A73="","",VLOOKUP(A73,[1]Buildings!$A$2:$F$301,3)) -> Naval Submarine Support Facility (NSSF)/Metal | C73: 5 | D73: 5 | E73: 6 | F73: 5 | G73: 7
A74: 71 | B74: =IF(A74="","",VLOOKUP(A74,[1]Buildings!$A$2:$F$301,3)) -> WT | C74: 5 | D74: 5 | E74: 6 | F74: 5 | G74: 7
A75: 72 | B75: =IF(A75="","",VLOOKUP(A75,[1]Buildings!$A$2:$F$301,3)) -> Public Works Dept | C75: 5 | D75: 5 | E75: 6 | F75: 5 | G75: 7
A76: 73 | B76: =IF(A76="","",VLOOKUP(A76,[1]Buildings!$A$2:$F$301,3)) -> Public Works Dept | C76: 5 | D76: 5 | E76: 6 | F76: 5 | G76: 7
A77: 74 | B77: =IF(A77="","",VLOOKUP(A77,[1]Buildings!$A$2:$F$301,3)) -> Commissary/Navy Exchange | C77: 5 | D77: 5 | E77: 6 | F77: 5 | G77: 7
A78: 75 | B78: =IF(A78="","",VLOOKUP(A78,[1]Buildings!$A$2:$F$301,3)) -> SUBASE Lanes Bowling Center | C78: 5 | D78: 5 | E78: 6 | F78: 5 | G78: 7
A79: 76 | B79: =IF(A79="","",VLOOKUP(A79,[1]Buildings!$A$2:$F$301,3)) -> Barracks – Triton Hall | C79: 5 | D79: 5 | E79: 6 | F79: 5 | G79: 7
A80: 77 | B80: =IF(A80="","",VLOOKUP(A80,[1]Buildings!$A$2:$F$301,3)) -> Barracks – Thresher Hall | C80: 5 | D80: 5 | E80: 6 | F80: 5 | G80: 7
A81: 78 | B81: =IF(A81="","",VLOOKUP(A81,[1]Buildings!$A$2:$F$301,3)) -> Naval Submarine Support Facility (NSSF)/SUP | C81: 5 | D81: 5 | E81: 6 | F81: 5 | G81: 7
A82: 79 | B82: =IF(A82="","",VLOOKUP(A82,[1]Buildings!$A$2:$F$301,3)) -> Submarine School | C82: 5 | D82: 5 | E82: 6 | F82: 5 | G82: 7
A83: 80 | B83: =IF(A83="","",VLOOKUP(A83,[1]Buildings!$A$2:$F$301,3)) -> Pass and ID Office | C83: 5 | D83: 5 | E83: 6 | F83: 5 | G83: 7
A84: 81 | B84: =IF(A84="","",VLOOKUP(A84,[1]Buildings!$A$2:$F$301,3)) -> Submarine School | C84: 5 | D84: 5 | E84: 6 | F84: 5 | G84: 7
A85: 82 | B85: =IF(A85="","",VLOOKUP(A85,[1]Buildings!$A$2:$F$301,3)) -> Submarine School | C85: 5 | D85: 5 | E85: 6 | F85: 5 | G85: 7
A86: 83 | B86: =IF(A86="","",VLOOKUP(A86,[1]Buildings!$A$2:$F$301,3)) -> Submarine School | C86: 5 | D86: 5 | E86: 6 | F86: 5 | G86: 7
A87: 84 | B87: =IF(A87="","",VLOOKUP(A87,[1]Buildings!$A$2:$F$301,3)) -> Veterinary Clinic | C87: 5 | D87: 5 | E87: 6 | F87: 5 | G87: 7
A88: 85 | B88: =IF(A88="","",VLOOKUP(A88,[1]Buildings!$A$2:$F$301,3)) -> Racquetball Center | C88: 5 | D88: 5 | E88: 6 | F88: 5 | G88: 7
A89: 86 | B89: =IF(A89="","",VLOOKUP(A89,[1]Buildings!$A$2:$F$301,3)) -> Public Works Dept Shop | C89: 5 | D89: 5 | E89: 6 | F89: 5 | G89: 7
A90: 87 | B90: =IF(A90="","",VLOOKUP(A90,[1]Buildings!$A$2:$F$301,3)) -> Naval Submarine Support Facility (NSSF)/WEPS | C90: 5 | D90: 5 | E90: 6 | F90: 5 | G90: 7
A91: 88 | B91: =IF(A91="","",VLOOKUP(A91,[1]Buildings!$A$2:$F$301,3)) -> Morale Welfare & Recreation (MWR)/Pest Control | C91: 5 | D91: 5 | E91: 6 | F91: 5 | G91: 7
A92: 89 | B92: =IF(A92="","",VLOOKUP(A92,[1]Buildings!$A$2:$F$301,3)) -> Submarine School | C92: 5 | D92: 5 | E92: 6 | F92: 5 | G92: 7
A93: 90 | B93: =IF(A93="","",VLOOKUP(A93,[1]Buildings!$A$2:$F$301,3)) -> Barracks – Fulton Hall | C93: 5 | D93: 5 | E93: 6 | F93: 5 | G93: 7
A94: 91 | B94: =IF(A94="","",VLOOKUP(A94,[1]Buildings!$A$2:$F$301,3)) -> Thames View Marina | C94: 5 | D94: 5 | E94: 6 | F94: 5 | G94: 7
A95: 92 | B95: =IF(A95="","",VLOOKUP(A95,[1]Buildings!$A$2:$F$301,3)) -> Vacant | C95: 5 | D95: 5 | E95: 6 | F95: 5 | G95: 7
A96: 93 | B96: =IF(A96="","",VLOOKUP(A96,[1]Buildings!$A$2:$F$301,3)) -> Fuels | C96: 5 | D96: 5 | E96: 6 | F96: 5 | G96: 7
A97: 94 | B97: =IF(A97="","",VLOOKUP(A97,[1]Buildings!$A$2:$F$301,3)) -> Environmental Oily Waste | C97: 5 | D97: 5 | E97: 6 | F97: 5 | G97: 7
A98: 95 | B98: =IF(A98="","",VLOOKUP(A98,[1]Buildings!$A$2:$F$301,3)) -> Morale Welfare & Recreation (MWR)/Pest Control | C98: 5 | D98: 5 | E98: 6 | F98: 5 | G98: 7
A99: 96 | B99: =IF(A99="","",VLOOKUP(A99,[1]Buildings!$A$2:$F$301,3)) -> Security Dog Kennel | C99: 5 | D99: 5 | E99: 6 | F99: 5 | G99: 7
A100: 97 | B100: =IF(A100="","",VLOOKUP(A100,[1]Buildings!$A$2:$F$301,3)) -> Barracks – Bishop Hall | C100: 5 | D100: 5 | E100: 6 | F100: 5 | G100: 7
A101: 98 | B101: =IF(A101="","",VLOOKUP(A101,[1]Buildings!$A$2:$F$301,3)) -> Supply/Chrimp | C101: 5 | D101: 5 | E101: 6 | F101: 5 | G101: 7
A102: 99 | B102: =IF(A102="","",VLOOKUP(A102,[1]Buildings!$A$2:$F$301,3)) -> ENV | C102: 5 | D102: 5 | E102: 6 | F102: 5 | G102: 7
A103: 100 | B103: =IF(A103="","",VLOOKUP(A103,[1]Buildings!$A$2:$F$301,3)) -> Naval Submarine Support Facility (NSSF)/Nuclear Regional Maintenance Department | C103: 5 | D103: 5 | E103: 6 | F103: 5 | G103: 7
A104: 101 | B104: =IF(A104="","",VLOOKUP(A104,[1]Buildings!$A$2:$F$301,3)) -> Liberty Recreation Center | C104: 5 | D104: 5 | E104: 6 | F104: 5 | G104: 7
A105: 102 | B105: =IF(A105="","",VLOOKUP(A105,[1]Buildings!$A$2:$F$301,3)) -> Nautilus | C105: 5 | D105: 5 | E105: 6 | F105: 5 | G105: 7
A106: 103 | B106: =IF(A106="","",VLOOKUP(A106,[1]Buildings!$A$2:$F$301,3)) -> Small Boat Maintenance | C106: 5 | D106: 5 | E106: 6 | F106: 5 | G106: 7
A107: 104 | B107: =IF(A107="","",VLOOKUP(A107,[1]Buildings!$A$2:$F$301,3)) -> Navy Branch Health Clinic | C107: 5 | D107: 5 | E107: 6 | F107: 5 | G107: 7
A108: 105 | B108: =IF(A108="","",VLOOKUP(A108,[1]Buildings!$A$2:$F$301,3)) -> Gate 7 Guard Shack | C108: 5 | D108: 5 | E108: 6 | F108: 5 | G108: 7
A109: 106 | B109: =IF(A109="","",VLOOKUP(A109,[1]Buildings!$A$2:$F$301,3)) -> Truck Inspection | C109: 5 | D109: 5 | E109: 6 | F109: 5 | G109: 7
A110: 107 | B110: =IF(A110="","",VLOOKUP(A110,[1]Buildings!$A$2:$F$301,3)) -> Unknown | C110: 5 | D110: 5 | E110: 6 | F110: 5 | G110: 7
A111: 108 | B111: =IF(A111="","",VLOOKUP(A111,[1]Buildings!$A$2:$F$301,3)) -> Unknown | C111: 5 | D111: 5 | E111: 6 | F111: 5 | G111: 7
A112: 109 | B112: =IF(A112="","",VLOOKUP(A112,[1]Buildings!$A$2:$F$301,3)) -> Unknown | C112: 5 | D112: 5 | E112: 6 | F112: 5 | G112: 7
A113: 110 | B113: =IF(A113="","",VLOOKUP(A113,[1]Buildings!$A$2:$F$301,3)) -> Sub Escape Trainer | C113: 5 | D113: 5 | E113: 6 | F113: 5 | G113: 7
A114: 111 | B114: =IF(A114="","",VLOOKUP(A114,[1]Buildings!$A$2:$F$301,3)) -> Crane Maintenance Facility | C114: 5 | D114: 5 | E114: 6 | F114: 5 | G114: 7
A115: 112 | B115: =IF(A115="","",VLOOKUP(A115,[1]Buildings!$A$2:$F$301,3)) -> Submarine Learning Center | C115: 5 | D115: 5 | E115: 6 | F115: 5 | G115: 7
A116: 113 | B116: =IF(A116="","",VLOOKUP(A116,[1]Buildings!$A$2:$F$301,3)) -> MAGFAC | C116: 5 | D116: 5 | E116: 6 | F116: 5 | G116: 7
A117: 114 | B117: =IF(A117="","",VLOOKUP(A117,[1]Buildings!$A$2:$F$301,3)) -> Gate 1 Guard Shack | C117: 5 | D117: 5 | E117: 6 | F117: 5 | G117: 7
A118: 115 | B118: =IF(A118="","",VLOOKUP(A118,[1]Buildings!$A$2:$F$301,3)) -> Chapel | C118: 5 | D118: 5 | E118: 6 | F118: 5 | G118: 7
A119: 116 | B119: =IF(A119="","",VLOOKUP(A119,[1]Buildings!$A$2:$F$301,3)) -> Dolphin Mart | C119: 5 | D119: 5 | E119: 6 | F119: 5 | G119: 7
A120: 117 | B120: =IF(A120="","",VLOOKUP(A120,[1]Buildings!$A$2:$F$301,3)) -> Morale Welfare & Recreation (MWR)/Youth Center | C120: 5 | D120: 5 | E120: 6 | F120: 5 | G120: 7
A121: 118 | B121: =IF(A121="","",VLOOKUP(A121,[1]Buildings!$A$2:$F$301,3)) -> Navy Lodge | C121: 5 | D121: 5 | E121: 6 | F121: 5 | G121: 7
A122: 119 | B122: =IF(A122="","",VLOOKUP(A122,[1]Buildings!$A$2:$F$301,3)) -> Morale Welfare & Recreation (MWR) | C122: 5 | D122: 5 | E122: 6 | F122: 5 | G122: 7
A123: 120 | B123: =IF(A123="","",VLOOKUP(A123,[1]Buildings!$A$2:$F$301,3)) -> Pier 1 | C123: 5 | D123: 5 | E123: 6 | F123: 5 | G123: 7
A124: 121 | B124: =IF(A124="","",VLOOKUP(A124,[1]Buildings!$A$2:$F$301,3)) -> Pier 10 | C124: 5 | D124: 5 | E124: 6 | F124: 5 | G124: 7
A125: 122 | B125: =IF(A125="","",VLOOKUP(A125,[1]Buildings!$A$2:$F$301,3)) -> Pier 1 | C125: 5 | D125: 5 | E125: 6 | F125: 5 | G125: 7
A126: 123 | B126: =IF(A126="","",VLOOKUP(A126,[1]Buildings!$A$2:$F$301,3)) -> Pier 3 | C126: 5 | D126: 5 | E126: 6 | F126: 5 | G126: 7
A127: 124 | B127: =IF(A127="","",VLOOKUP(A127,[1]Buildings!$A$2:$F$301,3)) -> Pier 4 | C127: 5 | D127: 5 | E127: 6 | F127: 5 | G127: 7
A128: 125 | B128: =IF(A128="","",VLOOKUP(A128,[1]Buildings!$A$2:$F$301,3)) -> Pier 5 | C128: 5 | D128: 5 | E128: 6 | F128: 5 | G128: 7
A129: 126 | B129: =IF(A129="","",VLOOKUP(A129,[1]Buildings!$A$2:$F$301,3)) -> Pier 6 | C129: 5 | D129: 5 | E129: 6 | F129: 5 | G129: 7
A130: 127 | B130: =IF(A130="","",VLOOKUP(A130,[1]Buildings!$A$2:$F$301,3)) -> Pier 7 | C130: 5 | D130: 5 | E130: 6 | F130: 5 | G130: 7
A131: 128 | B131: =IF(A131="","",VLOOKUP(A131,[1]Buildings!$A$2:$F$301,3)) -> Pier 8 | C131: 5 | D131: 5 | E131: 6 | F131: 5 | G131: 7
A132: 129 | B132: =IF(A132="","",VLOOKUP(A132,[1]Buildings!$A$2:$F$301,3)) -> Pier 9 | C132: 5 | D132: 5 | E132: 6 | F132: 5 | G132: 7
A133: 130 | B133: =IF(A133="","",VLOOKUP(A133,[1]Buildings!$A$2:$F$301,3)) -> Fire Station 2 | C133: 5 | D133: 0 | E133: 6 | F133: 5 | G133: 7
A134: 131 | B134: =IF(A134="","",VLOOKUP(A134,[1]Buildings!$A$2:$F$301,3)) -> PPV Housing | C134: 5 | D134: 5 | E134: 6 | F134: 5 | G134: 7

Sheet CallData
A1: Period Start | B1: 2004-01-01
A2: Period End | B2: 2006-12-31
A3: Total Days | B3: =B2-B1 -> 1095
E4: Civilian | F4: F&ES
A5: Building Fires | B5: 33 | D5: Fire Injuries | E5: 0 | F5: 2
A6: Vehicle Fires | B6: 12 | D6: Non-Fire Injuries | E6: 0 | F6: 1
A7: Other Fires | B7: 73 | D7: Fire Deaths | E7: 0 | F7: 0
A8: Overpressure Ruptures, Explosion, Overheat | B8: 18 | D8: Non-Fire Deaths | E8: 0 | F8: 0
A9: Medical Treatment | B9: 1829
A10: Other Rescue | B10: 69
A11: Hazardous Conditions | B11: 314
A12: Service Calls | B12: 273
A13: Good Intent | B13: 199
A14: Severe Weather & Natural Disaster | B14: 2
A15: Special Incident | B15: 4
A16: Unknown Incident | B16: 0
A17: Malicious False Calls | B17: 24
A18: Other False Calls | B18: 756
A20: Total Calls | B20: =SUM(B5:B18) -> 3606
G23: =1095*24 -> 26280
G24: =G23/33 -> 796.3636364

Sheet Results
A1: Base: | B1: =Header!B1 -> SUBASE New London (Baseline) | D1: Average Response Time | G1: Percent On Time | K1: Response Times in Minutes | P1: Fire Loss vs. Timeliness
A2: Reps: | B2: =Header!B11 -> 30 | D2: 1st Truck | E2: 4.3047719 | H2: On Time | I2: Late | L2: 1st Truck | M2: 2nd Truck | N2: 3rd Truck | Q2: On Time | R2: Late
D3: 2nd Truck | E3: 4.871986389 | G3: 1st Truck | H3: 0.7599999905 | I3: 0.2399999946 | K3: 1 | L3: 0 | M3: 0 | N3: 0 | P3: Max | Q3: 0.4647313654 | R3: 0.5635592937
D4: 3rd Truck | E4: 4.971665382 | G4: 2nd Truck | H4: 0.5400000215 | I4: 0.4600000083 | K4: 2 | L4: 0 | M4: 0 | N4: 0 | P4: 3rd Quartile | Q4: 0.1698606759 | R4: 0.2646805644
G5: 3rd Truck | H5: 0.5 | I5: 0.5 | K5: 3 | L5: 76 | M5: 47 | N5: 41 | P5: Median | Q5: 0.1173510924 | R5: 0.1589528024
K6: 4 | L6: 119 | M6: 90 | N6: 84 | P6: 2nd Quartile | Q6: 0.06800968945 | R6: 0.1050424129
K7: 5 | L7: 85 | M7: 76 | N7: 76 | P7: Min | Q7: 0 | R7: 0
K8: 6 | L8: 25 | M8: 68 | N8: 74
K9: 7 | L9: 9 | M9: 33 | N9: 39
K10: 8 | L10: 0 | M10: 0 | N10: 0 | Q10: On Time | R10: Late
K11: 9 | L11: 0 | M11: 0 | N11: 0 | P11: Max | Q11: 0.2948706746 | R11: 0.2988787293
K12: 10 | L12: 0 | M12: 0 | N12: 0 | P12: 3rd Quartile | Q12: 0.05250958353 | R12: 0.105727762
K13: 11 | L13: 0 | M13: 0 | N13: 0 | P13: Median | Q13: 0.04934140295 | R13: 0.05391038954
K14: 12 | L14: 0 | M14: 0 | N14: 0 | P14: 1st Quartile | Q14: 0.06800968945 | R14: 0.1050424129
K15: 13 | L15: 0 | M15: 0 | N15: 0 | P15: Min | Q15: 0.06800968945 | R15: 0.1050424129
K16: 14 | L16: 0 | M16: 0 | N16: 0
K17: 15 | L17: 0 | M17: 0 | N17: 0
